fUST/lending_fUST_20250116
["ID","MTS","AMOUNT","RATE_DAILY","PERIOD"]
[349148223,1736992256637,-500.0,0.00019452,3]
[349148224,1736992256647,-500.0,0.00019452,3]
[349148225,1736992256656,-772.03,0.00019452,3]
[349148226,1736992256665,-500.0,0.00019452,3]
[349148227,1736992256675,-500.0,0.00019452,3]
[349148228,1736992256685,-849.77,0.00019452,3]
[349148229,1736992256695,-500.0,0.00019452,3]
[349148230,1736992256704,-500.0,0.00019452,3]
[349148231,1736992256714,-9744.74685512,0.00019452,3]
[349148232,1736992256735,-6970.84314488,0.00019452,3]
[349148233,1736992256745,-2085.58,0.00019452,3]
[349148234,1736992256754,-891.52,0.00019452,3]
[349148235,1736992256764,-500.0,0.00019452,3]
[349148236,1736992256773,-500.0,0.00019452,3]
[349148237,1736992256783,-502.3,0.00019452,3]
[349148238,1736992256792,-2052.17,0.00019452,3]
[349148239,1736992256801,-500.0,0.00019452,3]
[349148240,1736992256810,-4741.25,0.00019452,3]
[349148241,1736992256820,-500.0,0.00019452,3]
[349148242,1736992256829,-249.12781379,0.00019452,3]
[349148243,1736992256838,-500.0,0.00019452,3]
[349148244,1736992256848,-1321.81,0.00019452,3]
[349148245,1736992256857,-980.99,0.00019452,3]
[349148246,1736992256867,-500.0,0.00019452,3]
[349148247,1736992256878,-500.0,0.00019452,3]
[349148248,1736992256887,-500.0,0.00019452,3]
[349148249,1736992256896,-631.63,0.00019452,3]
[349148250,1736992256905,-500.0,0.00019452,3]
[349148251,1736992256915,-500.0,0.00019452,3]
[349148252,1736992256925,-500.0,0.00019452,3]
[349148253,1736992256934,-500.0,0.00019452,3]
[349148254,1736992256949,-500.0,0.00019452,3]
[349148255,1736992256959,-875.29,0.00019452,3]
[349148256,1736992256968,-500.0,0.00019452,3]
[349148257,1736992256977,-599.4,0.00019452,3]
[349148258,1736992256988,-500.0,0.00019452,3]
[349148259,1736992256999,-2117.8,0.00019452,3]
[349148260,1736992257012,-1089.8,0.00019452,3]
[349148261,1736992257023,-500.0,0.00019452,3]
[349148262,1736992257034,-500.0,0.00019452,3]
[349148263,1736992257043,-673.9,0.00019452,3]
[349148264,1736992257054,-537.45188883,0.00019452,3]
[349148265,1736992257063,-1794.75,0.00019452,3]
[349148266,1736992257074,-500.0,0.00019452,3]
[349148267,1736992257084,-595.49,0.00019452,3]
[349148268,1736992257094,-500.0,0.00019452,3]
[349148269,1736992257104,-749.3,0.00019452,3]
[349148270,1736992257113,-500.0,0.00019452,3]
[349148271,1736992257124,-500.0,0.00019452,3]
[349148272,1736992257134,-500.0,0.00019452,3]
[349148273,1736992257143,-640.97,0.00019452,3]
[349148274,1736992257152,-500.0,0.00019452,3]
[349148275,1736992257161,-761.12,0.00019452,3]
[349148276,1736992257171,-501.8,0.00019452,3]
[349148277,1736992257180,-5274.04,0.00019452,3]
[349148278,1736992257189,-500.0,0.00019452,3]
[349148279,1736992257198,-69141.43,0.00019452,3]
[349148280,1736992257207,-500.0,0.00019452,3]
[349148281,1736992257217,-500.0,0.00019452,3]
[349148282,1736992257226,-2664.28,0.00019452,3]
[349148283,1736992257236,-648.26,0.00019452,3]
[349148284,1736992257245,-500.0,0.00019452,3]
[349148285,1736992257256,-1837.0,0.00019452,3]
[349148286,1736992257266,-690.92,0.00019452,3]
[349148287,1736992257276,-500.0,0.00019452,3]
[349148288,1736992257285,-500.0,0.00019452,3]
[349148289,1736992257294,-500.0,0.00019452,3]
[349148290,1736992257303,-500.0,0.00019452,3]
[349148291,1736992257313,-500.0,0.00019452,3]
[349148292,1736992257322,-2008.7,0.00019452,3]
[349148293,1736992257331,-500.0,0.00019452,3]
[349148294,1736992257340,-601.6,0.00019452,3]
[349148295,1736992257349,-468.98409345,0.00019452,3]
[349148296,1736992257359,-200.0,0.00019452,3]
[349148297,1736992257370,-500.0,0.00019452,3]
[349148298,1736992257380,-500.0,0.00019452,3]
[349148299,1736992257389,-2408.38,0.00019452,3]
[349148300,1736992257399,-500.0,0.00019452,3]
[349148301,1736992257408,-554.44,0.00019452,3]
[349148302,1736992257418,-500.0,0.00019452,3]
[349148303,1736992257428,-500.0,0.00019452,3]
[349148304,1736992257437,-500.0,0.00019452,3]
[349148305,1736992257447,-1207.1,0.00019452,3]
[349148306,1736992257456,-500.0,0.00019452,3]
[349148307,1736992257466,-2072.28,0.00019452,3]
[349148308,1736992257475,-500.0,0.00019452,3]
[349148309,1736992257484,-503.35947698,0.00019452,3]
[349148310,1736992257494,-1080.78,0.00019452,3]
[349148311,1736992257503,-954.9,0.00019452,3]
[349148312,1736992257513,-500.0,0.00019452,3]
[349148313,1736992257523,-500.0,0.00019452,3]
[349148314,1736992257532,-518.01,0.00019452,3]
[349148315,1736992257542,-2772.17,0.00019452,3]
[349148316,1736992257551,-500.0,0.00019452,3]
[349148317,1736992257561,-500.0,0.00019452,3]
[349148318,1736992257570,-991.62,0.00019452,3]
[349148319,1736992257580,-501.76,0.00019452,3]
[349148320,1736992257589,-7422.79,0.00019452,3]
[349148321,1736992257599,-500.0,0.00019452,3]
[349148322,1736992257609,-500.0,0.00019452,3]
[349148323,1736992257618,-3459.34,0.00019452,3]
[349148324,1736992257629,-677.35,0.00019452,3]
[349148325,1736992257638,-500.0,0.00019452,3]
[349148326,1736992257647,-500.0,0.00019452,3]
[349148327,1736992257657,-500.0,0.00019452,3]
[349148328,1736992257666,-2098.62,0.00019452,2]
[349148329,1736992257675,-3426.95,0.00019452,3]
[349148330,1736992257685,-500.0,0.00019452,3]
[349148331,1736992257694,-500.0,0.00019452,3]
[349148332,1736992257704,-22472.45,0.00019452,3]
[349148333,1736992257713,-967.83,0.00019452,3]
[349148334,1736992257722,-4058.33,0.00019452,3]
[349148335,1736992257731,-500.0,0.00019452,3]
[349148336,1736992257741,-500.0,0.00019452,3]
[349148337,1736992257750,-1002.16,0.00019452,3]
[349148338,1736992257760,-595.93,0.00019452,3]
[349148339,1736992257770,-500.0,0.00019452,3]
[349148340,1736992257854,-500.0,0.00019452,3]
[349148341,1736992257865,-500.0,0.00019452,3]
[349148342,1736992257877,-500.0,0.00019452,3]
[349148343,1736992257886,-500.0,0.00019452,3]
[349148344,1736992257896,-500.0,0.00019452,3]
[349148345,1736992257906,-500.0,0.00019452,3]
[349148346,1736992257916,-500.0,0.00019452,3]
[349148347,1736992257926,-1620.28,0.00019452,3]
[349148348,1736992257935,-500.0,0.00019452,3]
[349148349,1736992257949,-500.0,0.00019452,3]
[349148350,1736992257958,-586.87,0.00019452,3]
[349148351,1736992257968,-720.86,0.00019452,3]
[349148352,1736992257981,-873.53,0.00019452,3]
[349148353,1736992257991,-500.0,0.00019452,3]
[349148354,1736992258001,-500.0,0.00019452,3]
[349148355,1736992258011,-896.65,0.00019452,3]
[349148356,1736992258021,-500.0,0.00019452,3]
[349148357,1736992258031,-3289.97,0.00019452,3]
[349148358,1736992258041,-542.62,0.00019452,3]
[349148359,1736992258050,-500.0,0.00019452,3]
[349148360,1736992258061,-500.0,0.00019452,3]
[349148361,1736992258070,-541.94,0.00019452,3]
[349148362,1736992258080,-598.43,0.00019452,3]
[349148363,1736992258090,-5498.47,0.00019452,3]
[349148364,1736992258100,-500.0,0.00019452,3]
[349148365,1736992258110,-500.0,0.00019452,3]
[349148366,1736992258121,-500.0,0.00019452,3]
[349148367,1736992258131,-15205.47,0.00019452,3]
[349148368,1736992258142,-500.0,0.00019452,3]
[349148369,1736992258151,-253.46205987,0.00019452,3]
[349148370,1736992258161,-633.47,0.00019452,3]
[349148371,1736992258171,-500.0,0.00019452,3]
[349148372,1736992258180,-3354.33,0.00019452,3]
[349148373,1736992258191,-6312.67,0.00019452,3]
[349148374,1736992258201,-500.0,0.00019452,3]
[349148375,1736992258210,-1233.86,0.00019452,3]
[349148376,1736992258220,-500.0,0.00019452,3]
[349148377,1736992258230,-500.0,0.00019452,3]
[349148378,1736992258240,-676.94,0.00019452,3]
[349148379,1736992258250,-636.62,0.00019452,3]
[349148380,1736992258259,-1000.0,0.00019452,7]
[349148381,1736992258269,-500.0,0.00019452,3]
[349148382,1736992258279,-500.0,0.00019452,3]
[349148383,1736992258289,-2697.65,0.00019452,3]
[349148384,1736992258299,-218.23085982,0.00019452,3]
[349148385,1736992258314,-49364.02914018,0.00019452,3]
[349148386,1736992258324,-670.84,0.00019452,3]
[349148387,1736992258333,-500.0,0.00019452,3]
[349148388,1736992258343,-2686.17,0.00019452,3]
[349148389,1736992258353,-500.0,0.00019452,3]
[349148390,1736992258362,-529.92,0.00019452,3]
[349148391,1736992258372,-1359.52,0.00019452,3]
[349148392,1736992258382,-500.0,0.00019452,3]
[349148393,1736992258392,-500.0,0.00019452,3]
[349148394,1736992258401,-6749.02,0.00019452,3]
[349148395,1736992258421,-500.0,0.00019452,3]
[349148396,1736992258439,-2660.94,0.00019452,3]
[349148397,1736992258459,-500.0,0.00019452,3]
[349148398,1736992258479,-500.0,0.00019452,3]
[349148399,1736992258501,-500.0,0.00019452,3]
[349148400,1736992258519,-942.34,0.00019452,3]
[349148401,1736992258538,-500.0,0.00019452,3]
[349148402,1736992258553,-876.01,0.00019452,3]
[349148403,1736992258570,-500.0,0.00019452,3]
[349148404,1736992258592,-1382.51,0.00019452,3]
[349148405,1736992258610,-1155.46,0.00019452,3]
[349148406,1736992258624,-500.0,0.00019452,3]
[349148407,1736992258643,-500.0,0.00019452,3]
[349148408,1736992258659,-500.0,0.00019452,3]
[349148409,1736992258673,-2063.66,0.00019452,3]
[349148410,1736992258688,-500.0,0.00019452,3]
[349148411,1736992258703,-500.0,0.00019452,3]
[349148412,1736992258720,-1206.25,0.00019452,3]
[349148413,1736992258735,-500.0,0.00019452,3]
[349148414,1736992258750,-893.07,0.00019452,3]
[349148415,1736992258766,-502.58691999,0.00019452,3]
[349148416,1736992258780,-1803.63,0.00019452,3]
[349148417,1736992258797,-3000.0,0.0001946,2]
[349148418,1736992258812,-3000.0,0.0001947,2]
[349148419,1736992258827,-500.0,0.00019473,2]
[349148420,1736992258842,-500.0,0.00019473,2]
[349148421,1736992258857,-500.0,0.00019473,2]
[349148422,1736992258872,-500.0,0.00019473,2]
[349148423,1736992258888,-500.67745349,0.00019473,2]
[349148424,1736992258903,-500.0,0.00019473,2]
[349148425,1736992258917,-520.27899275,0.00019473,2]
[349148426,1736992258932,-267.0044596,0.00019473,2]
[349148427,1736992258949,-352.77258972,0.00019473,2]
[349148428,1736992258964,-419.26776387,0.00019473,2]
[349148429,1736992258980,-317.00382179,0.00019473,2]
[349148430,1736992258995,-500.0,0.00019473,2]
[349148431,1736992259011,-500.0,0.00019473,2]
[349148432,1736992259029,-500.0,0.00019473,2]
[349148433,1736992259044,-500.0,0.00019473,2]
[349148434,1736992259058,-500.0,0.00019473,2]
[349148435,1736992259068,-500.46243319,0.00019473,2]
[349148436,1736992259078,-151.42305865,0.00019473,2]
[349148437,1736992259088,-601.10411555,0.00019473,2]
[349148438,1736992259098,-151.2823805,0.00019473,2]
[349148439,1736992259108,-500.0,0.00019473,2]
[349148440,1736992259118,-257.86633064,0.00019473,2]
[349148441,1736992259130,-151.3355209,0.00019473,2]
[349148442,1736992259140,-500.0,0.00019473,2]
[349148443,1736992259150,-429.4114143,0.00019473,2]
[349148444,1736992259160,-500.0,0.00019473,2]
[349148445,1736992259169,-500.27844727,0.00019473,2]
[349148446,1736992259179,-500.0,0.00019473,2]
[349148447,1736992259189,-3000.0,0.0001948,2]
[349148448,1736992259199,-3000.0,0.0001949,2]
[349148449,1736992259208,-3000.0,0.000195,2]
[349148450,1736992259404,-3000.0,0.0001951,2]
[349148451,1736992259429,-3000.0,0.0001952,2]
[349148452,1736992259441,-3000.0,0.0001953,2]
[349148453,1736992259451,-3000.0,0.0001954,2]
[349148454,1736992259460,-3000.0,0.0001955,2]
[349148455,1736992259470,-3000.0,0.0001956,2]
[349148456,1736992259480,-1527.40042727,0.00019563,2]
[349148457,1736992259490,-3000.0,0.0001957,2]
[349148458,1736992259500,-3000.0,0.0001958,2]
[349148459,1736992259511,-150.83262029,0.00019589,3]
[349148460,1736992259520,-500.0,0.00019589,3]
[349148461,1736992259530,-210.17127139,0.00019589,3]
[349148462,1736992259539,-500.0,0.00019589,3]
[349148463,1736992259549,-500.0,0.00019589,3]
[349148464,1736992259558,-500.0,0.00019589,3]
[349148465,1736992259567,-500.0,0.00019589,3]
[349148466,1736992259576,-500.0,0.00019589,3]
[349148467,1736992259585,-500.0,0.00019589,3]
[349148468,1736992259595,-500.0,0.00019589,3]
[349148469,1736992259605,-618.0,0.00019589,3]
[349148470,1736992259614,-500.0,0.00019589,3]
[349148471,1736992259625,-500.0,0.00019589,3]
[349148472,1736992259635,-500.0,0.00019589,3]
[349148473,1736992259644,-500.0,0.00019589,3]
[349148474,1736992259654,-500.0,0.00019589,3]
[349148475,1736992259663,-500.0,0.00019589,3]
[349148476,1736992259673,-500.0,0.00019589,3]
[349148477,1736992259684,-1268.43,0.00019589,3]
[349148478,1736992259694,-500.0,0.00019589,3]
[349148479,1736992259703,-852.39,0.00019589,3]
[349148480,1736992259713,-500.0,0.00019589,3]
[349148481,1736992259723,-500.0,0.00019589,3]
[349148482,1736992259732,-500.0,0.00019589,3]
[349148483,1736992259742,-500.0,0.00019589,3]
[349148484,1736992259752,-500.0,0.00019589,3]
[349148485,1736992259762,-532.67229476,0.00019589,3]
[349148486,1736992259771,-500.0,0.00019589,3]
[349148487,1736992259781,-500.0,0.00019589,3]
[349148488,1736992259791,-500.0,0.00019589,3]
[349148489,1736992259801,-500.0,0.00019589,3]
[349148490,1736992259811,-500.0,0.00019589,3]
[349148491,1736992259820,-500.0,0.00019589,3]
[349148492,1736992259830,-500.0,0.00019589,3]
[349148493,1736992259840,-526.49659178,0.00019589,3]
[349148494,1736992259849,-500.0,0.00019589,3]
[349148495,1736992259860,-500.0,0.00019589,3]
[349148496,1736992259872,-500.0,0.00019589,3]
[349148497,1736992259882,-1013.2,0.00019589,3]
[349148498,1736992259893,-500.0,0.00019589,3]
[349148499,1736992259902,-652.56,0.00019589,3]
[349148500,1736992259912,-500.0,0.00019589,3]
[349148501,1736992259922,-500.0,0.00019589,3]
[349148502,1736992259931,-500.0,0.00019589,3]
[349148503,1736992259945,-500.0,0.00019589,3]
[349148504,1736992259955,-313.81300728,0.00019589,3]
[349148505,1736992259964,-329.70333569,0.00019589,3]
[349148506,1736992259974,-500.0,0.00019589,3]
[349148507,1736992259985,-775.75,0.00019589,3]
[349148508,1736992259995,-500.0,0.00019589,3]
[349148509,1736992260005,-500.0,0.00019589,3]
[349148510,1736992260017,-540.29,0.00019589,3]
[349148511,1736992260028,-500.0,0.00019589,3]
[349148512,1736992260038,-500.0,0.00019589,3]
[349148513,1736992260049,-500.0,0.00019589,3]
[349148514,1736992260060,-500.0,0.00019589,3]
[349148515,1736992260071,-500.0,0.00019589,3]
[349148516,1736992260081,-562.79,0.00019589,3]
[349148517,1736992260092,-500.0,0.00019589,3]
[349148518,1736992260102,-500.0,0.00019589,3]
[349148519,1736992260112,-500.0,0.00019589,3]
[349148520,1736992260122,-590.42,0.00019589,3]
[349148521,1736992260131,-500.0,0.00019589,3]
[349148522,1736992260141,-1498.22,0.00019589,3]
[349148523,1736992260151,-690.45,0.00019589,3]
[349148524,1736992260160,-500.0,0.00019589,3]
[349148525,1736992260170,-1017.55,0.00019589,3]
[349148526,1736992260179,-500.0,0.00019589,3]
[349148527,1736992260189,-500.0,0.00019589,3]
[349148528,1736992260199,-500.0,0.00019589,3]
[349148529,1736992260209,-500.0,0.00019589,3]
[349148530,1736992260219,-940.45,0.00019589,3]
[349148531,1736992260228,-500.0,0.00019589,3]
[349148532,1736992260238,-696.08,0.00019589,3]
[349148533,1736992260247,-500.0,0.00019589,3]
[349148534,1736992260257,-500.0,0.00019589,3]
[349148535,1736992260267,-500.0,0.00019589,3]
[349148536,1736992260276,-500.0,0.00019589,3]
[349148537,1736992260286,-573.91,0.00019589,3]
[349148538,1736992260296,-500.0,0.00019589,3]
[349148539,1736992260306,-500.0,0.00019589,3]
[349148540,1736992260315,-508.67,0.00019589,3]
[349148541,1736992260325,-500.0,0.00019589,3]
[349148542,1736992260335,-1550.43,0.00019589,3]
[349148543,1736992260344,-1186.47,0.00019589,3]
[349148544,1736992260354,-500.0,0.00019589,3]
[349148545,1736992260363,-500.0,0.00019589,3]
[349148546,1736992260375,-521.21,0.00019589,3]
[349148547,1736992260385,-500.0,0.00019589,3]
[349148548,1736992260395,-500.0,0.00019589,3]
[349148549,1736992260404,-604.06,0.00019589,3]
[349148550,1736992260414,-500.0,0.00019589,3]
[349148551,1736992260424,-369.70542463,0.00019589,3]
[349148552,1736992260828,-287.723214,0.00019176,2]
[349148553,1736992260838,-287.723214,0.00019177,2]
[349148554,1736992260848,-151.0,0.00019177,2]
[349148555,1736992260858,-517.41,0.00019178,2]
[349148556,1736992260868,-517.41,0.00019178,2]
[349148557,1736992260883,-517.41,0.00019178,2]
[349148558,1736992260893,-517.41,0.00019178,2]
[349148559,1736992260903,-517.41,0.00019178,2]
[349148560,1736992260912,-287.723214,0.00019178,2]
[349148561,1736992260921,-517.41,0.00019178,2]
[349148562,1736992260931,-500.0,0.00019178,2]
[349148563,1736992260942,-517.41,0.00019178,2]
[349148564,1736992260952,-287.723214,0.00019178,2]
[349148565,1736992260961,-517.41,0.00019178,2]
[349148566,1736992260971,-287.723214,0.00019178,2]
[349148567,1736992260981,-517.53656386,0.00019178,2]
[349148568,1736992260992,-287.723214,0.00019178,2]
[349148569,1736992261002,-500.0,0.00019315,3]
[349148570,1736992261011,-500.0,0.00019452,3]
[349148571,1736992261023,-130.29457537,0.00019589,3]
[349148572,1736992261033,-500.0,0.00019589,3]
[349148573,1736992261042,-1137.94,0.00019589,3]
[349148574,1736992261052,-300.84587251,0.00019589,3]
[349148575,1736992261062,-494.50342492,0.00019589,3]
[349148576,1736992261074,-5.49657508,0.00019589,3]
[349148577,1736992261084,-743.97,0.00019589,3]
[349148578,1736992261094,-1267.88,0.00019589,3]
[349148579,1736992261103,-500.0,0.00019589,3]
[349148580,1736992261113,-225.44090292,0.00019589,3]
[349148581,1736992261125,-1264.75,0.00019589,3]
[349148582,1736992261134,-500.0,0.00019589,3]
[349148583,1736992261144,-500.0,0.00019589,3]
[349148584,1736992261155,-1112.4,0.00019589,3]
[349148585,1736992261164,-1037.33,0.00019589,3]
[349148586,1736992261174,-1958.19,0.00019589,3]
[349148587,1736992261184,-500.0,0.00019589,3]
[349148588,1736992261194,-1060.97,0.00019589,3]
[349148589,1736992261205,-608.28,0.00019589,3]
[349148590,1736992261214,-528.7,0.00019589,3]
[349148591,1736992261225,-500.0,0.00019589,3]
[349148592,1736992261234,-500.0,0.00019589,3]
[349148593,1736992261244,-917.15,0.00019589,3]
[349148594,1736992261254,-500.0,0.00019589,3]
[349148595,1736992261263,-500.0,0.00019589,3]
[349148596,1736992261272,-500.0,0.00019589,3]
[349148597,1736992261282,-556.49,0.00019589,3]
[349148598,1736992261291,-512.97,0.00019589,3]
[349148599,1736992261301,-500.0,0.00019589,3]
[349148600,1736992261310,-500.0,0.00019589,3]
[349148601,1736992261320,-500.0,0.00019589,3]
[349148602,1736992261330,-775.94,0.00019589,3]
[349148603,1736992261339,-500.0,0.00019589,3]
[349148604,1736992261349,-685.21,0.00019589,3]
[349148605,1736992261360,-555.7,0.00019589,3]
[349148606,1736992261370,-593.78051752,0.00019589,3]
[349148607,1736992261382,-500.0,0.00019589,3]
[349148608,1736992261391,-500.0,0.00019589,3]
[349148609,1736992261401,-769.34,0.00019589,3]
[349148610,1736992261411,-500.0,0.00019589,3]
[349148611,1736992261421,-500.0,0.00019589,3]
[349148612,1736992261529,-500.0,0.00019589,3]
[349148613,1736992261543,-564.71,0.00019589,3]
[349148614,1736992261553,-1114.88,0.00019589,3]
[349148615,1736992261562,-568.63,0.00019589,3]
[349148616,1736992261572,-1357.98,0.00019589,3]
[349148617,1736992261582,-503.05090114,0.00019589,3]
[349148618,1736992261591,-822.06,0.00019589,3]
[349148619,1736992261600,-500.0,0.00019589,3]
[349148620,1736992261609,-500.0,0.00019589,3]
[349148621,1736992261619,-500.0,0.00019589,3]
[349148622,1736992261631,-500.0,0.00019589,3]
[349148623,1736992261642,-500.0,0.00019589,3]
[349148624,1736992261651,-500.0,0.00019589,3]
[349148625,1736992261660,-500.0,0.00019589,3]
[349148626,1736992261670,-1618.87,0.00019589,3]
[349148627,1736992261680,-1289.6,0.00019589,3]
[349148628,1736992261690,-500.0,0.00019589,3]
[349148629,1736992261700,-150.70274422,0.00019589,3]
[349148630,1736992261709,-500.0,0.00019589,3]
[349148631,1736992261718,-772.03,0.00019589,3]
[349148632,1736992261728,-500.0,0.00019589,3]
[349148633,1736992261737,-500.0,0.00019589,3]
[349148634,1736992261747,-849.77,0.00019589,3]
[349148635,1736992261756,-500.0,0.00019589,3]
[349148636,1736992261766,-16715.59,0.00019589,3]
[349148637,1736992261776,-500.0,0.00019589,3]
[349148638,1736992261785,-2085.58,0.00019589,3]
[349148639,1736992261794,-891.52,0.00019589,3]
[349148640,1736992261803,-500.0,0.00019589,3]
[349148641,1736992261812,-500.0,0.00019589,3]
[349148642,1736992261822,-502.3,0.00019589,3]
[349148643,1736992261832,-2052.17,0.00019589,3]
[349148644,1736992261842,-500.0,0.00019589,3]
[349148645,1736992261852,-4741.25,0.00019589,3]
[349148646,1736992261862,-500.0,0.00019589,3]
[349148647,1736992261871,-500.0,0.00019589,3]
[349148648,1736992261883,-1321.81,0.00019589,3]
[349148649,1736992261893,-980.99,0.00019589,3]
[349148650,1736992261903,-500.0,0.00019589,3]
[349148651,1736992261913,-500.0,0.00019589,3]
[349148652,1736992261923,-631.63,0.00019589,3]
[349148653,1736992261933,-500.0,0.00019589,3]
[349148654,1736992261950,-600.5844107,0.00019589,3]
[349148655,1736992261960,-500.0,0.00019589,3]
[349148656,1736992261969,-500.0,0.00019589,3]
[349148657,1736992261979,-500.0,0.00019589,3]
[349148658,1736992261989,-875.29,0.00019589,3]
[349148659,1736992261998,-500.0,0.00019589,3]
[349148660,1736992262007,-599.4,0.00019589,3]
[349148661,1736992262017,-595.78261997,0.00019589,3]
[349148662,1736992262027,-2117.8,0.00019589,3]
[349148663,1736992262038,-1089.8,0.00019589,3]
[349148664,1736992262047,-500.0,0.00019589,3]
[349148665,1736992262057,-673.9,0.00019589,3]
[349148666,1736992262067,-500.0,0.00019589,3]
[349148667,1736992262077,-1794.75,0.00019589,3]
[349148668,1736992262087,-595.49,0.00019589,3]
[349148669,1736992262096,-500.0,0.00019589,3]
[349148670,1736992262106,-749.3,0.00019589,3]
[349148671,1736992262116,-500.0,0.00019589,3]
[349148672,1736992262126,-500.0,0.00019589,3]
[349148673,1736992262136,-610.25984198,0.00019589,3]
[349148674,1736992262145,-640.97,0.00019589,3]
[349148675,1736992262154,-500.0,0.00019589,3]
[349148676,1736992262164,-761.12,0.00019589,3]
[349148677,1736992262175,-501.8,0.00019589,3]
[349148678,1736992262187,-5274.04,0.00019589,3]
[349148679,1736992262199,-500.0,0.00019589,3]
[349148680,1736992262208,-69141.43,0.00019589,3]
[349148681,1736992262218,-500.0,0.00019589,3]
[349148682,1736992262228,-500.0,0.00019589,3]
[349148683,1736992262237,-2664.28,0.00019589,3]
[349148684,1736992262247,-648.26,0.00019589,3]
[349148685,1736992262256,-500.0,0.00019589,3]
[349148686,1736992262266,-690.92,0.00019589,3]
[349148687,1736992262276,-1837.0,0.00019589,3]
[349148688,1736992262286,-500.0,0.00019589,3]
[349148689,1736992262295,-500.0,0.00019589,3]
[349148690,1736992262305,-500.0,0.00019589,3]
[349148691,1736992262315,-500.0,0.00019589,3]
[349148692,1736992262324,-500.0,0.00019589,3]
[349148693,1736992262333,-2008.7,0.00019589,3]
[349148694,1736992262343,-500.0,0.00019589,3]
[349148695,1736992262352,-601.6,0.00019589,3]
[349148696,1736992262361,-200.0,0.00019589,3]
[349148697,1736992262371,-500.0,0.00019589,3]
[349148698,1736992262382,-252.48630424,0.00019589,3]
[349148699,1736992262392,-2408.38,0.00019589,3]
[349148700,1736992262402,-500.0,0.00019589,3]
[349148701,1736992262411,-554.44,0.00019589,3]
[349148702,1736992262421,-500.0,0.00019589,3]
[349148703,1736992262431,-500.0,0.00019589,3]
[349148704,1736992262440,-500.0,0.00019589,3]
[349148705,1736992262450,-1207.1,0.00019589,3]
[349148706,1736992262459,-500.0,0.00019589,3]
[349148707,1736992262469,-2072.28,0.00019589,3]
[349148708,1736992262479,-500.0,0.00019589,3]
[349148709,1736992262489,-1080.78,0.00019589,3]
[349148710,1736992262498,-954.9,0.00019589,3]
[349148711,1736992262508,-500.0,0.00019589,3]
[349148712,1736992262518,-500.0,0.00019589,3]
[349148713,1736992262528,-518.01,0.00019589,3]
[349148714,1736992262539,-2772.17,0.00019589,3]
[349148715,1736992262550,-500.0,0.00019589,3]
[349148716,1736992262560,-500.0,0.00019589,3]
[349148717,1736992262569,-991.62,0.00019589,3]
[349148718,1736992262579,-501.76,0.00019589,3]
[349148719,1736992262588,-7422.79,0.00019589,3]
[349148720,1736992262599,-500.0,0.00019589,3]
[349148721,1736992262608,-500.0,0.00019589,3]
[349148722,1736992262617,-3459.34,0.00019589,3]